fUST/lending_fUST_20260524
["ID","MTS","AMOUNT","RATE_DAILY","PERIOD"]
[422878887,1779559848000,-500.0,0.00012602,2]
[422878870,1779559848000,-578.75,0.00012602,2]
[422878866,1779559848000,-2000.0,0.000126,2]
[422878874,1779559848000,-543.6,0.00012602,2]
[422878886,1779559848000,-2020.84,0.00012602,2]
[422878883,1779559848000,-596.97213202,0.00012602,2]
[422878884,1779559848000,-10065.79,0.00012602,2]
[422878881,1779559848000,-839.33,0.00012602,2]
[422878885,1779559848000,-918.12,0.00012602,2]
[422878880,1779559848000,-1147.84,0.00012602,2]
[422878879,1779559848000,-497.67641086,0.00012602,2]
[422878882,1779559848000,-569.47,0.00012602,2]
[422878875,1779559848000,-1782.94,0.00012602,2]
[422878876,1779559848000,-1177.56,0.00012602,2]
[422878877,1779559848000,-601.04,0.00012602,2]
[422878862,1779559848000,-2000.0,0.000126,2]
[422878921,1779559848000,-1147.84,0.00012876,2]
[422878926,1779559848000,-2020.84,0.00012876,2]
[422878919,1779559848000,-1782.94,0.00012876,2]
[422878952,1779559848000,-502.9694042,0.00013113,60]
[422878958,1779559848000,-1655.39,0.0001315,2]
[422878953,1779559848000,-192.952134,0.00013147,2]
[422878960,1779559848000,-1585.91,0.0001315,2]
[422878959,1779559848000,-578.75,0.0001315,2]
[422878955,1779559848000,-502.9694042,0.00013148,60]
[422878961,1779559848000,-638.9,0.0001315,2]
[422878956,1779559848000,-550.02229407,0.0001315,3]
[422878957,1779559848000,-874.16,0.0001315,2]
[422878954,1779559848000,-674.006611,0.00013147,2]
[422878963,1779559848000,-543.6,0.0001315,2]
[422878962,1779559848000,-707.49,0.0001315,2]
[422878965,1779559848000,-1177.56,0.0001315,2]
[422878964,1779559848000,-1782.94,0.0001315,2]
[422878967,1779559848000,-839.33,0.0001315,2]
[422878973,1779559848000,-500.0,0.0001315,2]
[422878966,1779559848000,-1147.84,0.0001315,2]
[422878974,1779559848000,-596.72,0.0001315,2]
[422878968,1779559848000,-569.47,0.0001315,2]
[422878969,1779559848000,-10065.79,0.0001315,2]
[422878971,1779559848000,-2020.84,0.0001315,2]
[422878972,1779559848000,-500.0,0.0001315,2]
[422878923,1779559848000,-569.47,0.00012876,2]
[422878975,1779559848000,-226.0,0.00013151,3]
[422878976,1779559848000,-502.9694042,0.00013184,60]
[422878977,1779559848000,-567.5369,0.000132,2]
[422878978,1779559848000,-894.6614,0.000132,2]
[422878947,1779559848000,-502.9694042,0.00013006,60]
[422878949,1779559848000,-161.799487,0.00013048,2]
[422878970,1779559848000,-918.12,0.0001315,2]
[422878946,1779559848000,-200.0,0.00013,20]
[422878948,1779559848000,-502.9694042,0.00013041,60]
[422878917,1779559848000,-707.49,0.00012876,2]
[422878925,1779559848000,-918.12,0.00012876,2]
[422878916,1779559848000,-638.9,0.00012876,2]
[422878922,1779559848000,-839.33,0.00012876,2]
[422878920,1779559848000,-1177.56,0.00012876,2]
[422878928,1779559848000,-500.0,0.00012876,2]
[422878938,1779559848000,-200.0,0.00012998,2]
[422878927,1779559848000,-500.0,0.00012876,2]
[422878930,1779559848000,-1464.86219115,0.00012879,5]
[422878931,1779559848000,-502.9694042,0.00012899,30]
[422878934,1779559848000,-244.0,0.00012934,2]
[422878937,1779559848000,-200.0,0.00012998,2]
[422878924,1779559848000,-10065.79,0.00012876,2]
[422878933,1779559848000,-1000.0,0.00012934,2]
[422878932,1779559848000,-12041.22624543,0.00012922,2]
[422878944,1779559848000,-600.94292919,0.00013,2]
[422878941,1779559848000,-71899.0,0.00012999,2]
[422878950,1779559848000,-502.9694042,0.00013077,60]
[422878942,1779559848000,-200.0,0.00012999,2]
[422878943,1779559848000,-200.0,0.00012999,2]
[422878939,1779559848000,-200.0,0.00012998,2]
[422878929,1779559848000,-596.72,0.00012876,2]
[422878951,1779559848000,-200.0,0.000131,2]
[422878935,1779559848000,-502.9694042,0.00012935,30]
[422878945,1779559848000,-704823.46009836,0.00013,2]
[422878936,1779559848000,-502.9694042,0.0001297,30]
[422878940,1779559848000,-100000.0,0.00012999,2]
[422879004,1779559849000,-569.47,0.00013424,2]
[422879005,1779559849000,-10065.79,0.00013424,2]
[422879002,1779559849000,-1147.84,0.00013424,2]
[422879001,1779559849000,-1177.56,0.00013424,2]
[422879003,1779559849000,-839.33,0.00013424,2]
[422879021,1779559849000,-500.0,0.00013698,2]
[422879011,1779559849000,-1000.21,0.000136,7]
[422879020,1779559849000,-535.87535632,0.00013698,2]
[422879022,1779559849000,-500.0,0.00013698,2]
[422879006,1779559849000,-918.12,0.00013424,2]
[422879017,1779559849000,-500.53988695,0.00013698,2]
[422879012,1779559849000,-12041.22624543,0.00013616,2]
[422879013,1779559849000,-272.480687,0.00013689,2]
[422879015,1779559849000,-934.38,0.00013698,2]
[422879019,1779559849000,-500.0,0.00013698,2]
[422879018,1779559849000,-500.0,0.00013698,2]
[422879014,1779559849000,-200.0,0.00013697,2]
[422879016,1779559849000,-623.93,0.00013698,2]
[422879024,1779559849000,-500.0,0.00013698,2]
[422879029,1779559849000,-874.16,0.00013698,2]
[422879010,1779559849000,-596.72,0.00013424,2]
[422879023,1779559849000,-500.0,0.00013698,2]
[422879009,1779559849000,-500.0,0.00013424,2]
[422878992,1779559849000,-623.93,0.00013424,2]
[422879008,1779559849000,-500.0,0.00013424,2]
[422879030,1779559849000,-500.0,0.00013698,2]
[422878986,1779559849000,-176.0,0.00013268,2]
[422878979,1779559849000,-1497.4291,0.000132,2]
[422878982,1779559849000,-879.853196,0.00013213,2]
[422878980,1779559849000,-261.80702093,0.000132,2]
[422878984,1779559849000,-199.12077148,0.00013228,60]
[422878983,1779559849000,-822.74702444,0.00013214,2]
[422878981,1779559849000,-1394.5829,0.000132,2]
[422878985,1779559849000,-4599.0,0.00013268,2]
[422878987,1779559849000,-185.291871,0.0001327,2]
[422879007,1779559849000,-2020.84,0.00013424,2]
[422878994,1779559849000,-1655.39,0.00013424,2]
[422878997,1779559849000,-638.9,0.00013424,2]
[422878993,1779559849000,-874.16,0.00013424,2]
[422878996,1779559849000,-1585.91,0.00013424,2]
[422878995,1779559849000,-578.75,0.00013424,2]
[422878990,1779559849000,-293.06022087,0.00013376,60]
[422878989,1779559849000,-1389.31639854,0.00013317,2]
[422878991,1779559849000,-934.38,0.00013424,2]
[422879000,1779559849000,-1782.94,0.00013424,2]
[422878998,1779559849000,-707.49,0.00013424,2]
[422878999,1779559849000,-543.6,0.00013424,2]
[422878988,1779559849000,-314.83896088,0.00013291,60]
[422879031,1779559849000,-500.0,0.00013698,2]
[422879042,1779559849000,-1443.09,0.00013698,2]
[422879033,1779559849000,-500.0,0.00013698,2]
[422879062,1779559849000,-1443.09,0.00013698,2]
[422879063,1779559849000,-1443.09,0.00013698,2]
[422879064,1779559849000,-1443.09,0.00013698,2]
[422879061,1779559849000,-1443.09,0.00013698,2]
[422879058,1779559849000,-1443.09,0.00013698,2]
[422879059,1779559849000,-1443.09,0.00013698,2]
[422879057,1779559849000,-1443.09,0.00013698,2]
[422879056,1779559849000,-1443.09,0.00013698,2]
[422879060,1779559849000,-1443.09,0.00013698,2]
[422879067,1779559849000,-500.0,0.00013698,2]
[422879054,1779559849000,-1443.09,0.00013698,2]
[422879070,1779559849000,-500.0,0.00013698,2]
[422879065,1779559849000,-1443.31363226,0.00013698,2]
[422879069,1779559849000,-500.0,0.00013698,2]
[422879066,1779559849000,-500.0,0.00013698,2]
[422879074,1779559849000,-1937.87,0.00013698,2]
[422879071,1779559849000,-228.77230107,0.00013698,2]
[422879072,1779559849000,-1937.87,0.00013698,2]
[422879075,1779559849000,-1937.87,0.00013698,2]
[422879076,1779559849000,-1937.87,0.00013698,2]
[422879077,1779559849000,-1937.87,0.00013698,2]
[422879032,1779559849000,-226.94263705,0.00013698,2]
[422879068,1779559849000,-500.0,0.00013698,2]
[422879049,1779559849000,-1443.09,0.00013698,2]
[422879073,1779559849000,-1937.87,0.00013698,2]
[422879050,1779559849000,-1443.09,0.00013698,2]
[422879051,1779559849000,-1443.09,0.00013698,2]
[422879035,1779559849000,-500.0,0.00013698,2]
[422879036,1779559849000,-500.0,0.00013698,2]
[422879034,1779559849000,-500.0,0.00013698,2]
[422879025,1779559849000,-500.0,0.00013698,2]
[422879028,1779559849000,-576.79796868,0.00013698,2]
[422879027,1779559849000,-295.72937648,0.00013698,2]
[422879038,1779559849000,-500.0,0.00013698,2]
[422879044,1779559849000,-1443.09,0.00013698,2]
[422879078,1779559849000,-1937.87,0.00013698,2]
[422879037,1779559849000,-500.0,0.00013698,2]
[422879026,1779559849000,-500.0,0.00013698,2]
[422879043,1779559849000,-1443.09,0.00013698,2]
[422879040,1779559849000,-500.0,0.00013698,2]
[422879055,1779559849000,-1443.09,0.00013698,2]
[422879052,1779559849000,-1443.09,0.00013698,2]
[422879047,1779559849000,-1443.09,0.00013698,2]
[422879048,1779559849000,-1443.09,0.00013698,2]
[422879053,1779559849000,-1443.09,0.00013698,2]
[422879045,1779559849000,-1443.09,0.00013698,2]
[422879041,1779559849000,-263.54,0.00013698,2]
[422879039,1779559849000,-500.0,0.00013698,2]
[422879046,1779559849000,-1443.09,0.00013698,2]
[422879101,1779559850000,-500.0,0.00013698,2]
[422879098,1779559850000,-500.0,0.00013698,2]
[422879100,1779559850000,-500.0,0.00013698,2]
[422879099,1779559850000,-500.0,0.00013698,2]
[422879102,1779559850000,-500.0,0.00013698,2]
[422879103,1779559850000,-500.0,0.00013698,2]
[422879105,1779559850000,-500.10151454,0.00013698,2]
[422879106,1779559850000,-500.0,0.00013698,2]
[422879110,1779559850000,-474.42574717,0.00013698,2]
[422879109,1779559850000,-500.0,0.00013698,2]
[422879108,1779559850000,-504.24631785,0.00013698,2]
[422879111,1779559850000,-1655.39,0.00013698,2]
[422879115,1779559850000,-500.0,0.00013698,2]
[422879113,1779559850000,-1585.91,0.00013698,2]
[422879096,1779559850000,-500.0,0.00013698,2]
[422879118,1779559850000,-177.89303644,0.00013698,2]
[422879104,1779559850000,-501.38970643,0.00013698,2]
[422879107,1779559850000,-504.28535143,0.00013698,2]
[422879085,1779559850000,-1937.87,0.00013698,2]
[422879090,1779559850000,-1937.87,0.00013698,2]
[422879112,1779559850000,-578.75,0.00013698,2]
[422879080,1779559850000,-1937.87,0.00013698,2]
[422879079,1779559850000,-1937.87,0.00013698,2]
[422879081,1779559850000,-1937.87,0.00013698,2]
[422879082,1779559850000,-1937.87,0.00013698,2]
[422879083,1779559850000,-1937.87,0.00013698,2]
[422879086,1779559850000,-1937.87,0.00013698,2]
[422879097,1779559850000,-500.0,0.00013698,2]
[422879087,1779559850000,-1937.87,0.00013698,2]
[422879088,1779559850000,-1937.87,0.00013698,2]
[422879092,1779559850000,-1937.87,0.00013698,2]
[422879091,1779559850000,-1937.87,0.00013698,2]
[422879094,1779559850000,-1937.87,0.00013698,2]
[422879089,1779559850000,-1937.87,0.00013698,2]
[422879093,1779559850000,-1937.87,0.00013698,2]
[422879095,1779559850000,-1938.02328621,0.00013698,2]
[422879084,1779559850000,-1937.87,0.00013698,2]
[422879114,1779559850000,-638.9,0.00013698,2]
[422879124,1779559850000,-839.33,0.00013698,2]
[422879117,1779559850000,-500.0,0.00013698,2]
[422879140,1779559850000,-151.0,0.00013699,2]
[422879139,1779559850000,-151.0,0.00013699,2]
[422879141,1779559850000,-151.0,0.00013699,2]
[422879142,1779559850000,-151.0,0.00013699,2]
[422879143,1779559850000,-151.0,0.00013699,2]
[422879144,1779559850000,-211.651295,0.00013699,2]
[422879146,1779559850000,-586.7334627,0.00013699,7]
[422879147,1779559850000,-2000.0,0.00013699,7]
[422879152,1779559850000,-157.72,0.00013775,2]
[422879151,1779559850000,-11188.5233274,0.00013759,2]
[422879119,1779559850000,-707.49,0.00013698,2]
[422879150,1779559850000,-712.31102408,0.00013705,2]
[422879149,1779559850000,-1904.23094795,0.00013699,2]
[422879148,1779559850000,-19156.40622361,0.00013699,2]
[422879154,1779559850000,-221765.96544128,0.000138,2]
[422879155,1779559850000,-21847.85206328,0.000138,2]
[422879156,1779559850000,-827.55422988,9.589e-05,2]
[422879138,1779559850000,-151.0,0.00013699,2]
[422879137,1779559850000,-151.0,0.00013699,2]
[422879153,1779559850000,-200.0,0.00013799,2]
[422879134,1779559850000,-500.0,0.00013699,2]
[422879136,1779559850000,-1000.0,0.00013699,2]
[422879116,1779559850000,-500.0,0.00013698,2]
[422879120,1779559850000,-543.6,0.00013698,2]
[422879129,1779559850000,-307.47119483,0.00013698,2]
[422879131,1779559850000,-596.72,0.00013698,2]
[422879128,1779559850000,-2020.84,0.00013698,2]
[422879133,1779559850000,-179.91004498,0.00013699,2]
[422879130,1779559850000,-500.0,0.00013698,2]
[422879122,1779559850000,-1177.56,0.00013698,2]
[422879121,1779559850000,-1782.94,0.00013698,2]
[422879145,1779559850000,-293.36673135,0.00013699,7]
[422879132,1779559850000,-500.0,0.00013699,2]
[422879125,1779559850000,-569.47,0.00013698,2]
[422879135,1779559850000,-397.841567,0.00013699,2]
[422879126,1779559850000,-10065.79,0.00013698,2]
[422879123,1779559850000,-1147.84,0.00013698,2]
[422879127,1779559850000,-918.12,0.00013698,2]
[422879157,1779559851000,-685.0,9.589e-05,2]
[422879168,1779560852000,-413.53041084,7.37e-05,2]
[422879187,1779561032000,-4800.0,7.231e-05,2]
[422879276,1779561041000,-262.297561,7.612e-05,2]
[422879291,1779561041000,-500.0,8.219e-05,2]
[422879290,1779561041000,-500.0,8.219e-05,2]
[422879278,1779561041000,-1236.29553989,7.673e-05,2]
[422879280,1779561041000,-2376.22739096,7.773e-05,2]
[422879279,1779561041000,-600.0,7.75e-05,2]
[422879277,1779561041000,-1236.29553989,7.673e-05,2]
[422879275,1779561041000,-40692.52439858,7.6e-05,2]
[422879281,1779561041000,-2397.06890941,7.873e-05,2]
[422879274,1779561041000,-300.0,7.599e-05,2]
[422879263,1779561041000,-2435.378491,7.159e-05,2]
[422879273,1779561041000,-300.0,7.599e-05,2]
[422879283,1779561041000,-2558.75763599,7.973e-05,2]
[422879271,1779561041000,-300.0,7.599e-05,2]
[422879272,1779561041000,-300.0,7.599e-05,2]
[422879268,1779561041000,-415.54560002,7.463e-05,2]
[422879269,1779561041000,-182.2,7.596e-05,2]
[422879270,1779561041000,-531.0,7.598e-05,2]
[422879266,1779561041000,-262.297561,7.305e-05,2]
[422879264,1779561041000,-200.0,7.231e-05,2]
[422879292,1779561041000,-585.01531221,8.219e-05,2]
[422879282,1779561041000,-262.297561,7.919e-05,2]
[422879284,1779561041000,-154.85076619,8e-05,2]
[422879295,1779561041000,-500.0,8.219e-05,2]
[422879293,1779561041000,-331.53370766,8.219e-05,2]
[422879285,1779561041000,-2741.28788113,8.073e-05,2]
[422879310,1779561041000,-500.0,8.219e-05,2]
[422879309,1779561041000,-500.0,8.219e-05,2]
[422879311,1779561041000,-457.33508045,8.219e-05,2]
[422879303,1779561041000,-500.0,8.219e-05,2]
[422879305,1779561041000,-500.0,8.219e-05,2]
[422879306,1779561041000,-326.70146052,8.219e-05,2]
[422879308,1779561041000,-500.0,8.219e-05,2]
[422879304,1779561041000,-500.0,8.219e-05,2]
[422879299,1779561041000,-500.0,8.219e-05,2]
[422879302,1779561041000,-500.0,8.219e-05,2]
[422879307,1779561041000,-500.0,8.219e-05,2]
[422879300,1779561041000,-587.97132463,8.219e-05,2]
[422879298,1779561041000,-500.0,8.219e-05,2]
[422879312,1779561041000,-42.66491955,8.219e-05,2]
[422879297,1779561041000,-500.0,8.219e-05,2]
[422879296,1779561041000,-500.0,8.219e-05,2]
[422879294,1779561041000,-168.46629234,8.219e-05,2]
[422879287,1779561041000,-395.7999776,8.219e-05,2]
[422879289,1779561041000,-500.0,8.219e-05,2]
[422879288,1779561041000,-164.31074602,8.219e-05,2]
[422879286,1779561041000,-2923.81812628,8.173e-05,2]
[422879301,1779561041000,-500.0,8.219e-05,2]
[422879313,1779561042000,-504.11,8.219e-05,2]
[422879316,1779561042000,-87.97790956,8.219e-05,2]
[422879314,1779561042000,-99.23943035,8.219e-05,2]
[422879315,1779561042000,-312.78266009,8.219e-05,2]
[422879318,1779561042000,-47.81444658,8.219e-05,2]
[422879317,1779561042000,-339.28670962,8.219e-05,2]
[422879340,1779561043000,-364.68529578,8.219e-05,2]
[422879333,1779561043000,-300.0,7.751e-05,2]
[422879334,1779561043000,-300.0,7.751e-05,2]
[422879337,1779561043000,-500.0,8.219e-05,2]
[422879336,1779561043000,-500.0,8.219e-05,2]
[422879338,1779561043000,-500.0,8.219e-05,2]
[422879342,1779561043000,-500.0,8.219e-05,2]
[422879343,1779561043000,-500.0,8.219e-05,2]
[422879335,1779561043000,-548.33576438,8.219e-05,2]
[422879341,1779561043000,-500.0,8.219e-05,2]
[422879344,1779561043000,-500.0,8.219e-05,2]
[422879352,1779561043000,-289.09794027,8.219e-05,2]
[422879346,1779561043000,-1915.14,8.219e-05,2]
[422879345,1779561043000,-500.0,8.219e-05,2]
[422879347,1779561043000,-500.0,8.219e-05,2]
[422879349,1779561043000,-500.88562307,8.219e-05,2]
[422879348,1779561043000,-500.0,8.219e-05,2]
[422879351,1779561043000,-500.33360588,8.219e-05,2]
[422879350,1779561043000,-500.0,8.219e-05,2]
[422879339,1779561043000,-500.0,8.219e-05,2]
[422879392,1779561047000,-153.08368563,8.219e-05,7]
[422879382,1779561047000,-500.0,8.219e-05,2]
[422879384,1779561047000,-500.0,8.219e-05,2]
[422879393,1779561047000,-164.71532063,8.219e-05,7]
[422879387,1779561047000,-440.54017475,8.219e-05,2]
[422879390,1779561047000,-500.0,8.219e-05,2]
[422879385,1779561047000,-500.0,8.219e-05,2]
[422879389,1779561047000,-597.85,8.219e-05,2]
[422879383,1779561047000,-500.0,8.219e-05,2]
[422879388,1779561047000,-500.0,8.219e-05,2]
[422879386,1779561047000,-326.51013732,8.219e-05,2]
[422879391,1779561047000,-171.25006952,8.219e-05,7]
[422879395,1779561047000,-342.50013903,8.247e-05,7]
[422879394,1779561047000,-262.297561,8.227e-05,2]
[422879373,1779561047000,-500.0,8.219e-05,2]
[422879371,1779561047000,-210.90205973,8.219e-05,2]
[422879369,1779561047000,-300.0,7.751e-05,2]
[422879404,1779561047000,-500.0,8.311e-05,2]
[422879365,1779561047000,-300.0,7.751e-05,2]
[422879363,1779561047000,-300.0,7.751e-05,2]
[422879364,1779561047000,-300.0,7.751e-05,2]
[422879366,1779561047000,-300.0,7.751e-05,2]
[422879368,1779561047000,-300.0,7.751e-05,2]
[422879378,1779561047000,-500.0,8.219e-05,2]
[422879376,1779561047000,-500.0,8.219e-05,2]
[422879380,1779561047000,-500.0,8.219e-05,2]
[422879379,1779561047000,-500.0,8.219e-05,2]
[422879377,1779561047000,-1388.99,8.219e-05,2]
[422879381,1779561047000,-500.0,8.219e-05,2]
[422879367,1779561047000,-300.0,7.751e-05,2]
[422879370,1779561047000,-300.0,7.751e-05,2]
[422879374,1779561047000,-500.0,8.219e-05,2]
[422879375,1779561047000,-500.0,8.219e-05,2]
[422879396,1779561047000,-306.16737127,8.247e-05,7]
[422879413,1779561047000,-256.98889893,8.311e-05,2]
[422879398,1779561047000,-3108.11985784,8.273e-05,2]
[422879414,1779561047000,-500.0,8.311e-05,2]
[422879416,1779561047000,-500.0,8.311e-05,2]
[422879417,1779561047000,-298.31438665,8.311e-05,2]
[422879421,1779561047000,-585.25,8.311e-05,2]
[422879424,1779561047000,-420.0,8.359e-05,2]
[422879426,1779561047000,-3557.84227893,8.423e-05,2]
[422879420,1779561047000,-500.0,8.311e-05,2]
[422879401,1779561047000,-500.0,8.311e-05,2]
[422879427,1779561047000,-530.02,8.493e-05,2]
[422879431,1779561047000,-500.0,8.493e-05,2]
[422879429,1779561047000,-500.0,8.493e-05,2]
[422879430,1779561047000,-500.0,8.493e-05,2]
[422879428,1779561047000,-500.0,8.493e-05,2]
[422879432,1779561047000,-447.24112826,8.493e-05,2]
[422879425,1779561047000,-3290.75947773,8.373e-05,2]
[422879415,1779561047000,-344.7857023,8.311e-05,2]
[422879423,1779561047000,-420.0,8.359e-05,2]
[422879422,1779561047000,-420.0,8.359e-05,2]
[422879418,1779561047000,-500.0,8.311e-05,2]
[422879406,1779561047000,-500.0,8.311e-05,2]
[422879400,1779561047000,-500.0,8.311e-05,2]
[422879405,1779561047000,-190.12949262,8.311e-05,2]
[422879397,1779561047000,-329.43064126,8.247e-05,7]
[422879408,1779561047000,-503.86000507,8.311e-05,2]
[422879399,1779561047000,-500.54343257,8.311e-05,2]
[422879407,1779561047000,-500.0,8.311e-05,2]
[422879409,1779561047000,-200.43740135,8.311e-05,2]
[422879402,1779561047000,-500.43037653,8.311e-05,2]
[422879410,1779561047000,-500.0,8.311e-05,2]
[422879411,1779561047000,-503.95502753,8.311e-05,2]
[422879412,1779561047000,-522.81183892,8.311e-05,2]
[422879419,1779561047000,-500.0,8.311e-05,2]
[422879403,1779561047000,-500.0,8.311e-05,2]
[422879468,1779562232000,-300.0,7.75e-05,2]
[422879472,1779562232000,-300.0,7.75e-05,2]
[422879466,1779562232000,-300.0,7.749e-05,2]
[422879463,1779562232000,-242.922089,7.685e-05,2]
[422879465,1779562232000,-300.0,7.749e-05,2]
[422879467,1779562232000,-300.0,7.75e-05,2]
[422879464,1779562232000,-300.0,7.749e-05,2]
[422879462,1779562232000,-1200.0,7.59e-05,2]
[422879457,1779562232000,-2168.10990786,7.262e-05,2]
[422879460,1779562232000,-427.83285144,7.409e-05,2]
[422879470,1779562232000,-300.0,7.75e-05,2]
[422879459,1779562232000,-731.17568956,7.262e-05,2]
[422879473,1779562232000,-300.0,7.75e-05,2]
[422879458,1779562232000,-679.45363298,7.262e-05,2]
[422879469,1779562232000,-300.0,7.75e-05,2]
[422879456,1779562232000,-1421.2607696,7.262e-05,2]
[422879461,1779562232000,-1200.0,7.589e-05,2]
[422879471,1779562232000,-300.0,7.75e-05,2]
[422879488,1779562232000,-709.85498194,8.117e-05,2]
[422879474,1779562232000,-300.0,7.75e-05,2]
[422879490,1779562232000,-221.36921145,8.117e-05,2]
[422879492,1779562232000,-709.85498194,8.117e-05,2]
[422879493,1779562232000,-151.30478175,8.118e-05,2]
[422879489,1779562232000,-709.85498194,8.117e-05,2]
[422879491,1779562232000,-488.48577049,8.117e-05,2]
[422879486,1779562232000,-709.85498194,8.117e-05,2]
[422879484,1779562232000,-242.922089,8.009e-05,2]
[422879487,1779562232000,-709.85498194,8.117e-05,2]
[422879482,1779562232000,-300.0,7.75e-05,2]
[422879479,1779562232000,-57.62937,7.75e-05,2]
[422879483,1779562232000,-600.0,7.75e-05,2]
[422879477,1779562232000,-300.0,7.75e-05,2]
[422879476,1779562232000,-300.0,7.75e-05,2]
[422879478,1779562232000,-300.0,7.75e-05,2]
[422879480,1779562232000,-242.37063,7.75e-05,2]
[422879481,1779562232000,-300.0,7.75e-05,2]
[422879475,1779562232000,-300.0,7.75e-05,2]
[422879485,1779562232000,-709.85498194,8.117e-05,2]
[422879523,1779562241000,-500.0,8.117e-05,2]
[422879524,1779562241000,-500.0,8.117e-05,2]
[422879518,1779562241000,-202.73013721,8.117e-05,2]
[422879517,1779562241000,-500.0,8.117e-05,2]
[422879515,1779562241000,-532.72182746,8.117e-05,2]
[422879525,1779562241000,-500.0,8.117e-05,2]
[422879522,1779562241000,-500.0,8.117e-05,2]
[422879526,1779562241000,-500.0,8.117e-05,2]
[422879533,1779562241000,-500.0,8.117e-05,2]
[422879534,1779562241000,-500.0,8.117e-05,2]
[422879528,1779562241000,-500.0,8.117e-05,2]
[422879530,1779562241000,-500.0,8.117e-05,2]
[422879531,1779562241000,-500.0,8.117e-05,2]
[422879529,1779562241000,-500.0,8.117e-05,2]
[422879532,1779562241000,-500.0,8.117e-05,2]
[422879516,1779562241000,-500.0,8.117e-05,2]
[422879527,1779562241000,-500.0,8.117e-05,2]
[422879514,1779562241000,-579.42512185,8.117e-05,2]
[422879504,1779562241000,-709.85498194,8.117e-05,2]
[422879520,1779562241000,-500.0,8.117e-05,2]
[422879498,1779562241000,-709.85498194,8.117e-05,2]
[422879506,1779562241000,-500.0,8.117e-05,2]
[422879497,1779562241000,-709.85498194,8.117e-05,2]
[422879499,1779562241000,-709.85498194,8.117e-05,2]
[422879501,1779562241000,-148.21391224,8.117e-05,2]
[422879502,1779562241000,-561.6410697,8.117e-05,2]
[422879500,1779562241000,-709.85498194,8.117e-05,2]
[422879503,1779562241000,-709.85498194,8.117e-05,2]
[422879505,1779562241000,-204.55110837,8.117e-05,2]
[422879536,1779562241000,-500.0,8.117e-05,2]
[422879507,1779562241000,-500.0,8.117e-05,2]
[422879509,1779562241000,-318.79840182,8.117e-05,2]
[422879519,1779562241000,-500.0,8.117e-05,2]
[422879511,1779562241000,-500.0,8.117e-05,2]
[422879510,1779562241000,-500.0,8.117e-05,2]
[422879512,1779562241000,-500.0,8.117e-05,2]
[422879508,1779562241000,-500.0,8.117e-05,2]
[422879513,1779562241000,-500.0,8.117e-05,2]
[422879546,1779562241000,-499.18378168,8.117e-05,2]
[422879521,1779562241000,-500.0,8.117e-05,2]
[422879537,1779562241000,-500.0,8.117e-05,2]
[422879557,1779562241000,-500.0,8.117e-05,2]
[422879559,1779562241000,-500.0,8.117e-05,2]
[422879562,1779562241000,-500.0,8.117e-05,2]
[422879563,1779562241000,-500.0,8.117e-05,2]
[422879565,1779562241000,-500.0,8.117e-05,2]
[422879564,1779562241000,-500.0,8.117e-05,2]
[422879566,1779562241000,-500.0,8.117e-05,2]
[422879574,1779562241000,-500.0,8.117e-05,2]
[422879558,1779562241000,-500.0,8.117e-05,2]
[422879571,1779562241000,-500.0,8.117e-05,2]
[422879572,1779562241000,-500.0,8.117e-05,2]
[422879570,1779562241000,-423.05812709,8.117e-05,2]
[422879573,1779562241000,-500.0,8.117e-05,2]
[422879569,1779562241000,-500.0,8.117e-05,2]
[422879575,1779562241000,-500.0,8.117e-05,2]
[422879577,1779562241000,-31832.71829613,8.118e-05,2]
[422879547,1779562241000,-500.0,8.117e-05,2]
[422879576,1779562241000,-500.0,8.117e-05,2]
[422879568,1779562241000,-500.0,8.117e-05,2]